Cogmind - Beta 13 @@@ ROGUE MODE // 2024.07.24 @ 13:42:43 Player: SovietPaperclip Result: Self-destructed Performance ------------- Evolutions (2) 1000 Regions Visited (5) 1000 Robots Destroyed (19) 95 Value Destroyed (636) 636 Prototype IDs (2) 40 Alien Tech Used (0) 0 Bonus (0) 0 TOTAL SCORE: 2771 Bonus ------- None Cogmind --------- Core Integrity 443/550 Matter 210/300 Energy 280/280 System Corruption 0% Temperature Cool (0) Movement Treading (240) Ox1 Location -8/Materials Parts ------- > --- POWER (1) -------- Heavy Ion Engine > --- PROPULSION (4) --- Light Treads > --- UTILITY (4) ------ Heat Sink Improved Heat Sink Large Storage Unit > --- WEAPON (2) ------- Grenade Launcher > --- INVENTORY (15) --- Light Nuclear Core Combat Airjet Medium Storage Unit Large Matter Pod (150) Launcher Guidance Computer Sensor Drone Bay (20/20) Peak State ------------ > --- POWER ------------ Light Nuclear Core > --- PROPULSION ------- Light Treads Light Treads > --- UTILITY ---------- Heat Sink Improved Heat Sink Large Storage Unit Sensor Drone Bay > --- WEAPON ----------- Assault Rifle Assault Rifle > --- INVENTORY -------- Light Nuclear Core Combat Airjet Medium Storage Unit Large Matter Pod Launcher Guidance Computer Grenade Launcher [Rating: 21] Favorites ----------- Power Light Nuclear Core Engine Light Ion Engine Power Core Light Nuclear Core Propulsion Light Treads Treads Light Treads Utility Improved Heat Sink Device Improved Heat Sink Storage Medium Storage Unit Weapon Assault Rifle Ballistic Gun Assault Rifle Launcher Grenade Launcher Build | -11 -10 -10 -10 -9 -8 ------- Run | Yrd Mat Min Exi Min Mat Slots Evolved 4 | . . . . . 4 Power . | . . . . . . Propulsion 2 | . . . . . 2 Utility 2 | . . . . . 2 Weapon . | . . . . . . Parts Attached 28 | 6 5 5 3 5 4 Power 3 | 1 . 1 . . 1 Engine 2 | 1 . . . . 1 Core 1 | . . 1 . . . Reactor . | . . . . . . Propulsion 3 | 2 . 1 . . . Treads 3 | 2 . 1 . . . Leg . | . . . . . . Wheel . | . . . . . . Hover . | . . . . . . Flight . | . . . . . . Utility 12 | 1 2 1 3 3 2 Device 9 | . 1 1 2 3 2 Storage 3 | 1 1 . 1 . . Processor . | . . . . . . Hackware . | . . . . . . Protection . | . . . . . . Artifact . | . . . . . . Weapon 10 | 2 3 2 . 2 1 Energy Gun . | . . . . . . Energy Cannon . | . . . . . . Ballistic Gun 6 | 2 1 2 . 1 . Ballistic Cannon . | . . . . . . Launcher 4 | . 2 . . 1 1 Special Weapon . | . . . . . . Impact Weapon . | . . . . . . Slashing Weapon . | . . . . . . Piercing Weapon . | . . . . . . Special Melee Weapon . | . . . . . . Unidentified Prototypes 2 | . . . 1 . 1 Parts Lost 5 | . . 2 . . 3 Power . | . . . . . . Propulsion 2 | . . 1 . . 1 Utility . | . . . . . . Weapon 3 | . . 1 . . 2 Highest Loss Streak 3 | . . 2 . . 3 To Critical Strikes . | . . . . . . Average Slot Usage (%) 92 | . 91 99 100 100 60 Engine 5 | . 14 2 . . 7 Core 8 | . . 11 14 14 1 Treads 25 | . 28 27 28 28 12 Device 12 | . 6 14 14 14 18 Storage 13 | . 14 14 14 14 9 Ballistic Gun 23 | . 27 28 28 15 6 Launcher 2 | . 1 . . 12 5 Naked Turns . | . . . . . . Heaviest Build 44 | 12 19 20 30 44 34 Greatest Support 40 | 40 40 40 40 40 40 Greatest Overweight (x) 1 | . . . . 1 1 Average Overweight (x) . | . . . . . . Largest Inventory Capacity 15 | 8 10 10 15 15 15 Average Capacity 11 | 6 8 10 10 15 15 Most Carried 8 | 2 5 5 7 8 8 Average Carried 4 | 1 3 4 5 6 6 Final Capacity 15 | 8 10 10 15 15 15 Final Carried 8 | 2 5 5 6 8 6 Class Distribution -------------------- 97% | Mutant Dominant Class ---------------- Mutant | -10/Materials Mutant | -10/Mines Mutant | -10/Exiles Mutant | -9/Mines Mutant | -8/Materials Resources | -11 -10 -10 -10 -9 -8 ----------- Run | Yrd Mat Min Exi Min Mat Matter Collected 941 | 184 287 163 112 170 25 Remotely . | . . . . . . Salvage Created 712 | . 358 163 . 89 102 Parts 33 | . 17 8 . 3 5 Haulers Intercepted 1 | . 1 . . . . Recyclers Shooed 4 | . 2 2 . . . Parts Field Recycled . | . . . . . . Retrieved Matter . | . . . . . . Parts Self-Destructed . | . . . . . . Prevented . | . . . . . . Kills | -11 -10 -10 -10 -9 -8 ------- Run | Yrd Mat Min Exi Min Mat Combat Hostiles Destroyed 17 | . 7 4 . 3 3 Guns 9 | . 5 4 . . . AOE 8 | . 2 . . 3 3 Classes Destroyed 6 | . 4 . . 2 . Worker 2 | . 2 . . . . Hauler 1 | . 1 . . . . Recycler 1 | . . . . 1 . Watcher 1 | . 1 . . . . Grunt 14 | . 7 4 . . 3 Assembled 3 | . . . . 3 . Best Kill Streak 5 | . 5 4 . 2 3 Combat Bots Only 4 | . 3 4 . 2 3 Max Kills in Single Turn 2 | . 2 1 . 1 2 Gunslinging . | . . . . . . Exploded 2 | . 2 . . 1 2 Melee . | . . . . . . Uniques/NPCs Destroyed . | . . . . . . Combat | -11 -10 -10 -10 -9 -8 -------- Run | Yrd Mat Min Exi Min Mat Hostile Shots Fired 79 | . 32 22 . 4 21 Missed 17 | . 8 6 . 1 2 Damage Taken 1094 | . 307 240 . 121 426 Core 252 | . 22 61 . 62 107 Absorbed by Shields . | . . . . . . Core Remaining (%) 71 | 100 . . . 42 . Volleys Fired 77 | . 34 18 . 13 12 Largest 2 | . 2 2 . 2 2 Hottest 50 | . 50 40 . 50 50 Shots Fired 142 | . 64 36 . 26 16 Gun 125 | . 59 36 . 20 10 Cannon . | . . . . . . Launcher 17 | . 5 . . 6 6 Special . | . . . . . . Kinetic 125 | . 59 36 . 20 10 Thermal . | . . . . . . Explosive 17 | . 5 . . 6 6 Electromagnetic . | . . . . . . Robot Hit Streak 18 | . 14 18 . 4 7 Robot Miss Streak 3 | . 3 2 . 3 3 Penetration Max . | . . . . . . Secondary Targets 1 | . . 1 . . . Max Gunslinging Chain 1 | . . 1 . . . Shots Hit Robots 89 | . 40 26 . 11 12 Core Hits 45 | . 22 10 . 6 7 Critical Kills . | . . . . . . Critical Parts Destroyed . | . . . . . . Critical Strikes . | . . . . . . Melee Attacks . | . . . . . . Impact . | . . . . . . Slashing . | . . . . . . Piercing . | . . . . . . Sneak Attacks . | . . . . . . Combat Hostiles . | . . . . . . Follow-up Attacks . | . . . . . . Damage Inflicted 1688 | . 776 328 . 257 327 Guns 1071 | . 538 328 . 114 91 Cannons . | . . . . . . Explosions 617 | . 238 . . 143 236 Melee . | . . . . . . Ramming . | . . . . . . Kinetic 1071 | . 538 328 . 114 91 Thermal . | . . . . . . Explosive 617 | . 238 . . 143 236 Electromagnetic . | . . . . . . Impact . | . . . . . . Slashing . | . . . . . . Piercing . | . . . . . . Highest Corruption . | . . . . . . Average Corruption . | . . . . . . Corruption Purged . | . . . . . . Corruption Blocked . | . . . . . . Overload Shots . | . . . . . . Overflow Damage . | . . . . . . Projectiles . | . . . . . . Explosions . | . . . . . . Melee . | . . . . . . Knockbacks . | . . . . . . Impact . | . . . . . . Kinetic . | . . . . . . Secondary . | . . . . . . Self-Inflicted Damage 174 | . . . . 73 101 Shots 8 | . . . . 3 5 Rammed . | . . . . . . Targets Rammed . | . . . . . . Kicked . | . . . . . . Crushed . | . . . . . . Highest Temperature 5 | . 5 . . . . Average Temperature 2 | . 2 . . . . Received Heat Transfer 522 | . 177 138 . . 207 Siege Activations . | . . . . . . Robots Corrupted . | . . . . . . Combat Hostiles . | . . . . . . Parts Fried . | . . . . . . Impact Corruptions . | . . . . . . Robots Melted . | . . . . . . Combat Hostiles . | . . . . . . Parts Melted . | . . . . . . Heat Transferred . | . . . . . . Parts Sabotaged . | . . . . . . Parts Stolen . | . . . . . . Parts Stripped . | . . . . . . Power Chain Reactions . | . . . . . . Alert | -11 -10 -10 -10 -9 -8 ------- Run | Yrd Mat Min Exi Min Mat Peak Influence 254 | . 254 97 . 48 107 Initial 18 | . . 10 . . 18 Average 69 | . 98 78 . 22 63 Maximum Alert Level 1 | . 1 . . . . Low Security (%) 94 | 100 82 100 . 100 100 Level 1 5 | . 17 . . . . Level 2 . | . . . . . . Level 3 . | . . . . . . Level 4 . | . . . . . . Level 5 . | . . . . . . High Security . | . . . . . . Max Security . | . . . . . . Squads Dispatched 4 | . 3 . . . 1 Investigation 1 | . 1 . . . . Extermination . | . . . . . . Reinforcement 3 | . 2 . . . 1 Assault . | . . . . . . Garrison . | . . . . . . Intercept . | . . . . . . Searches Triggered . | . . . . . . Construction Impeded . | . . . . . . Haulers Reinforced . | . . . . . . Active Scanning Responses . | . . . . . . Cargo Convoy Interrupts . | . . . . . . Stealth | -11 -10 -10 -10 -9 -8 --------- Run | Yrd Mat Min Exi Min Mat Distress Signals 1 | . . . . 1 . Communications Jammed . | . . . . . . Distress Signals . | . . . . . . Times Spotted 21 | . 10 4 . 3 4 Peak Tracking Total 4 | . 4 4 . 2 3 Tactical Retreats . | . . . . . . Traps | -11 -10 -10 -10 -9 -8 ------- Run | Yrd Mat Min Exi Min Mat Traps Triggered . | . . . . . . Indirectly . | . . . . . . Trap Hack Attempts . | . . . . . . Triggered . | . . . . . . Disarmed . | . . . . . . Reprogrammed . | . . . . . . Reused . | . . . . . . Traps Extracted . | . . . . . . Installed . | . . . . . . Triggered . | . . . . . . Machines | -11 -10 -10 -10 -9 -8 ---------- Run | Yrd Mat Min Exi Min Mat Machines Disabled 4 | . 3 . . . 1 Max in Single Turn 1 | . 1 . . . 1 Machines Repaired . | . . . . . . Machines Dismantled . | . . . . . . Machines Sabotaged . | . . . . . . Overloaded Fab Kills . | . . . . . . Hacking | -11 -10 -10 -10 -9 -8 --------- Run | Yrd Mat Min Exi Min Mat Machines Accessed 8 | . 4 2 1 . 1 Terminals 6 | . 4 1 . . 1 Fabricators . | . . . . . . Repair Stations . | . . . . . . Recycling Units . | . . . . . . Scanalyzers . | . . . . . . Garrison Access . | . . . . . . Total Hacks 20 | . 13 3 1 . 3 Successful 8 | . 4 2 1 . 1 Failed 12 | . 9 1 . . 2 Catastrophic 3 | . 2 1 . . . Database Lockouts . | . . . . . . Manual 12 | . 7 2 . . 3 Terminals 18 | . 13 2 . . 3 Fabricators . | . . . . . . Repair Stations . | . . . . . . Recycling Units . | . . . . . . Scanalyzers . | . . . . . . Garrison Access . | . . . . . . Terminal Hacks 5 | . 2 2 1 . . Record 1 | . . . 1 . . Part Schematic 1 | . . 1 . . . Open Door 1 | . . 1 . . . Branch Access Points 1 | . 1 . . . . Unreport Threat 1 | . 1 . . . . Fabricator Hacks . | . . . . . . Repair Station Hacks . | . . . . . . Recycling Unit Hacks . | . . . . . . Scanalyzer . | . . . . . . Garrison Access Hacks . | . . . . . . Unauthorized Hacks 3 | . 2 . . . 1 Terminals 3 | . 2 . . . 1 Botnet 3 | . 2 . . . 1 Fabricators . | . . . . . . Repair Stations . | . . . . . . Recycling Units . | . . . . . . Scanalyzers . | . . . . . . Garrison Access . | . . . . . . Data Cores Recovered . | . . . . . . Used . | . . . . . . Hacking Detections 6 | . 4 1 . . 1 Full Trace Events 1 | . 1 . . . . Feedback Events . | . . . . . . Feedback Blocked . | . . . . . . Robot Schematics Acquired . | . . . . . . Robots Built . | . . . . . . Authchips . | . . . . . . Time . | . . . . . . Total Robot Build Rating . | . . . . . . Part Schematics Acquired 1 | . . 1 . . . Parts Built . | . . . . . . Authchips . | . . . . . . Time . | . . . . . . Total Part Build Rating . | . . . . . . Parts Repaired . | . . . . . . Time . | . . . . . . Parts Recycled . | . . . . . . Recycled Matter . | . . . . . . Retrieved Matter . | . . . . . . Retrieved Components . | . . . . . . Parts Scanalyzed . | . . . . . . Part Schematics Acquired . | . . . . . . Parts Damaged . | . . . . . . Bothacking | -11 -10 -10 -10 -9 -8 ------------ Run | Yrd Mat Min Exi Min Mat Used RIF Installer . | . . . . . . Robots Hacked . | . . . . . . Non-combat . | . . . . . . Combat . | . . . . . . Robot Hacks Applied . | . . . . . . Relay Couplers Released . | . . . . . . Fabnet Peak Effective % . | . . . . . . Robots Rewired . | . . . . . . Allies Hacked . | . . . . . . Hacks Repelled . | . . . . . . Allies | -11 -10 -10 -10 -9 -8 -------- Run | Yrd Mat Min Exi Min Mat Total Allies . | . . . . . . Largest Group . | . . . . . . Highest-Rated Group . | . . . . . . Highest-Rated Ally . | . . . . . . Total Orders . | . . . . . . Ally Attacks . | . . . . . . Total Damage . | . . . . . . Kills . | . . . . . . Allies Corrupted . | . . . . . . Allies Melted . | . . . . . . Intel | -11 -10 -10 -10 -9 -8 ------- Run | Yrd Mat Min Exi Min Mat Robot Analysis Total . | . . . . . . Derelict Logs Recovered 1 | . . 1 . . . Drone Launches 2 | . . . . 2 . Drone Recoveries 2 | . . . . 2 . Exploration | -11 -10 -10 -10 -9 -8 ------------- Run | Yrd Mat Min Exi Min Mat Turns Passed 1791 | 59 425 444 387 233 243 Spaces Moved 827 | 35 165 232 239 62 94 Core 6 | 6 . . . . . Treads 821 | 29 165 232 239 62 94 Legs . | . . . . . . Wheels . | . . . . . . Hover . | . . . . . . Flight . | . . . . . . Fastest Speed 50 | 50 160 160 160 160 160 Average Speed 170 | 141 160 160 160 238 205 Slowest Speed 240 | 160 160 160 160 240 240 Overloaded Moves . | . . . . . . Propulsion Burnouts . | . . . . . . Robots Hopped . | . . . . . . Cave-ins Triggered . | . . . . . . Exploration Rate (%) 31 | 3 39 59 59 16 14 Regions Visited 5 Branch Regions 3 Pre-discovered Areas 1 | . . . 1 . . Known Exits Taken 2 | . 1 . 1 . . Unknown Exits Taken 3 | 1 . 1 . 1 . Scrap Searched . | . . . . . . Spaces Dug 8 | . 8 . . . . Terrain Destroyed 77 | . 8 . . 47 22 Melee . | . . . . . . Projectile . | . . . . . . AOE 77 | . 8 . . 47 22 Terrain Rammed . | . . . . . . Walls Destroyed . | . . . . . . Machines Disabled . | . . . . . . Actions | -11 -10 -10 -10 -9 -8 --------- Run | Yrd Mat Min Exi Min Mat Total 1060 | 42 260 268 243 120 127 Wait 115 | . 54 9 . 38 14 Move 822 | 34 164 231 238 61 94 Hop . | . . . . . . Pick Up 12 | 2 3 3 1 2 1 Fast Attach 6 | 6 . . . . . Attach 7 | . 1 2 . 1 3 Detach 2 | . . . . 1 1 Swap 15 | . 4 3 3 4 1 Drop 4 | . . 2 1 . 1 Fire 77 | . 34 18 . 13 12 Melee . | . . . . . . Ram . | . . . . . . Kick . | . . . . . . Crush . | . . . . . . Escape Stasis . | . . . . . . Rewire . | . . . . . . Trap . | . . . . . . Miscellaneous . | . . . . . . Route ------- -11/Scrapyard -10/Materials (discovered 2 exits: [*Mat] / *Min) -10/Mines (discovered 3 exits: [*Mat x2] / *Exi) -10/Exiles (discovered 2 exits: *Min x2) -9/Mines -8/Materials History --------- Turn | Location | Event 3 | -11/Scrapyard | Discovered new exit (range 14) 60 | -11/Scrapyard | Entered Materials 203 | -10/Materials | Identified exit to Mines 319 | -10/Materials | Build established: Mutant 371 | -10/Materials | Discovered new exit (range 10) 485 | -10/Materials | Entered Mines 488 | -10/Mines | Met a Derelict bent on vengeance 584 | -10/Mines | Discovered new exit (range 2) 808 | -10/Mines | Discovered new exit (range 5) 887 | -10/Mines | Found the Drone Emporium 894 | -10/Mines | Found Prototype Device 921 | -10/Mines | Deemed a non-threat by the Exiles lab entrance 922 | -10/Mines | Discovered new exit (range 5) 929 | -10/Mines | Entered Exiles 930 | -10/Exiles | Identified exit to Mines 966 | -10/Exiles | Met 8R-AWN 997 | -10/Exiles | Met EX-HEX 1056 | -10/Exiles | Met EX-DEC 1069 | -10/Exiles | Learned location of Zion (-7) 1147 | -10/Exiles | Identified Sensor Drone Bay 1316 | -10/Exiles | Entered Mines 1317 | -9/Mines | Assembled infested the area 1322 | -9/Mines | Assisted by a Guerilla fighting off Assembled 1400 | -9/Mines | Core integrity fell below 50% 1481 | -9/Mines | Discovered new exit (range 13) 1549 | -9/Mines | Entered Materials 1549 | -8/Materials | Evolved 4 slots: Propulsion x2, Utility x2 1680 | -8/Materials | Lost 3 parts (1n2w) 1792 | -8/Materials | Self-destructed Last Messages --------------- 01639_ Assault Rifle destroyed. 01647_ G-47 Trooper destroyed. 01647_ Electrolysis Chamber disabled. 01647_ Lgt. Treads destroyed. 01649_ Assault Rifle destroyed. 01653_ The unstable cave ceiling collapses. 01655_ Critical hit (Burn: +37). 01658_ G-50 Soldier destroyed. 01661_ The unstable cave ceiling collapses. 01665_ Acquired 25 matter. 01666_ The unstable cave ceiling collapses. 01735_ U-05 Engineer lays Concrete. 01738_ The unstable cave ceiling collapses. 01738_ U-05 Engineer lays Concrete. 01742_ U-05 Engineer builds a Wall. 01742_ U-05 Engineer lays Concrete. 01747_ U-05 Engineer builds a Wall. 01754_ T-07 Excavator is excavating. 01790_ ALERT: Suspicious intruders detected, dispatching Specialist reinforcements to area. Map ----- +----------------------------------------------------+ | ?????????????########### # """ """ #? | | ????????????? """ # """ """ #? | | ????????????? ""R" + """ """ #? | | ????????????? "" " # """ """ #? | | ????????????????# # #? | | ????????????????# ##########?#? | | ????????????????# #????? ##?? | | ????????????????# #?### #?? | | ????????????????# # #?? | | ????????????????# """ # #?? | | ????????????????# """ #??? | | ????????????????# """ # ##?????? | | ????????????????# ########??????? | | ????????????????# #?????????????? | | ????????????????# """ #?????????????? | | ????????????????# """ #?????????????? | | ????????????????# """ #?????????????? | | ????????????????# tw#?????????????? | | ????????????????# #?????????????? | | ????????????????# """ #???#?????????? | | ????????????????# """ #??!##????????? | | ????????????????# """ #? !#????????? | | ????????????????# ## !#????????? | | ????????????????# !#????????? | | ????????????????# !#????????? | | ????????????????# k @ !##????????? | | ????????????????# #####/#####?????????? | | ????????????????# ???? ?????????????? | | ????????????????# ?????"" ?????????????? | | ????????????????# ?????"Y" #????????????? | | ????????????????#??????" " #????????????? | | ?????????????????????? #????????????? | | ?????????????????????? !! #????????????? | | ?????????????????????? ! *Y????????????? | | ??????????????????????######????????????? | | ????????????????????????????????????????? | | ????????????????????????????????????????? | | ????????????????????????????????????????? | | ????????????????????????????????????????? | | ??????????????????H?????????????????????? | | ????????????????????????????????????????? | | ????????????????????????????????????????? | | ????????????????????????????????????????? | | ????????????????????????????????????????? | | ????????????????????????????????????????? | | ????????????????????????????????????????? | | ????????????????????????????????????????? | | ????????????????????????????????????????? | | ????????????????????????????????????????? | | ????????????????????????????????????????? | +----------------------------------------------------+ Best States ------------- Heat Dissipation 55 Energy Generation 14 Energy Capacity 280 Matter Stores 300 Matter Capacity 300 Sight Range 16 Terrain Scan Density 10 Evasion (%) 40 Recoil Reduction 2 Item Schematics ----------------- Cargo Storage Unit | -10/Mines | Hacked Robot Schematics ------------------ None Fabricated ------------ Nothing Alien Tech Used ----------------- None Achievements -------------- None Challenges ------------ None Game ------ Seed NovaChipAutobeam Manual? 0 Play Time 00:12:09 Cumulative 128.6 hours Start 2024.07.23 @ 21:13:18 End 2024.07.24 @ 13:42:43 Sessions 3 Manual Loads 0 Difficulty Rogue Special Mode None Game No. 178 Rogue 178 Adventurer 0 Explorer 0 Win Type - Total 1 Types 1/0/0/0/0/0/0/0/0 Lore% 50 Gallery% 55 Achievement% 51 Wizard Run 0 Options --------- Layout 1 ASCII 0 Keyboard 0 Movement Mouse Keybinds 0 Fullscreen 1 Font 32/SmallcapsGlow Map View 77x35 Zoom Use 0% Tactical HUD 1 Map Filters NONE Filters NONE Steam 1 RUN: 4c879763-8719-4cfd-b673-2508bdc3c3d1